Cogmind - Beta 15 *** ADVENTURER MODE // 2025.06.26 @ 03:58:38 Player: VioletSharmander Result: Destroyed by as-75864 with Assembled Heavy Rifle Performance ------------- Evolutions (0) 0 Regions Visited (2) 400 Robots Destroyed (8) 40 Value Destroyed (275) 275 Prototype IDs (0) 0 Alien Tech Used (0) 0 Bonus (0) 0 TOTAL SCORE: 715 Bonus ------- None Cogmind --------- Core Integrity 0/250 Matter 270/300 Energy 76/250 System Corruption 0% Temperature Cool (20) Movement Treading (160) Location -10/Mines Parts ------- > --- POWER (1) -------- Ion Engine > --- PROPULSION (2) --- Light Treads > --- UTILITY (2) ------ Small Storage Unit > --- WEAPON (2) ------- Medium Laser > --- INVENTORY (8) ---- Ion Engine Aluminum Leg Aluminum Leg Heat Sink Power Shielding Datajack Peak State ------------ > --- POWER ------------ Light Nuclear Core > --- PROPULSION ------- Light Treads Light Treads > --- UTILITY ---------- Small Storage Unit Visual Processing Unit > --- WEAPON ----------- Medium Laser Medium Laser > --- INVENTORY -------- Ion Engine Ion Engine Aluminum Leg Aluminum Leg Heat Sink Large Matter Pod [Rating: 10] Favorites ----------- Power Ion Engine Engine Ion Engine Power Core Light Nuclear Core Propulsion Light Treads Treads Light Treads Leg Aluminum Leg Utility Small Storage Unit Storage Small Storage Unit Processor Visual Processing Unit Protection Power Shielding Weapon Medium Laser Energy Gun Medium Laser Ballistic Gun Light Assault Rifle Ballistic Cannon Light Cannon Special Melee Weapon Datajack Build | -11 -10 -10 ------- Run | Yrd Mat Min Slots Evolved . | . . . Power . | . . . Propulsion . | . . . Utility . | . . . Weapon . | . . . Parts Attached 17 | 8 9 . Power 3 | 1 2 . Engine 2 | 1 1 . Core 1 | . 1 . Reactor . | . . . Propulsion 4 | 4 . . Treads 2 | 2 . . Leg 2 | 2 . . Wheel . | . . . Hover . | . . . Flight . | . . . Utility 4 | 1 3 . Device . | . . . Storage 1 | 1 . . Processor 2 | . 2 . Hackware . | . . . Protection 1 | . 1 . Artifact . | . . . Weapon 6 | 2 4 . Energy Gun 3 | 2 1 . Energy Cannon . | . . . Ballistic Gun 1 | . 1 . Ballistic Cannon 1 | . 1 . Launcher . | . . . Special Weapon . | . . . Impact Weapon . | . . . Slashing Weapon . | . . . Piercing Weapon . | . . . Special Melee Weapon 1 | . 1 . Unidentified Prototypes . | . . . Parts Lost 7 | . 2 5 Power 2 | . 1 1 Propulsion 1 | . . 1 Utility 1 | . . 1 Weapon 3 | . 1 2 Highest Loss Streak 5 | . 2 5 To Critical Strikes . | . . . Average Backups 6 | 5 7 7 Power 1 | . 1 2 Propulsion 3 | 3 2 2 Utility . | . 1 2 Weapon 1 | . 1 1 Tool/Special . | . . . Unused Backups 6 | . 4 2 Power 1 | . . 1 Propulsion 3 | . 3 . Utility 2 | . 1 1 Weapon . | . . . Tool/Special . | . . . Average Slot Usage (%) 97 | . 98 88 Engine 5 | . 5 . Core 8 | . 8 8 Treads 28 | . 28 28 Storage 14 | . 14 14 Processor 10 | . 10 11 Protection 2 | . 2 . Energy Gun 16 | . 17 2 Ballistic Gun 5 | . 5 11 Ballistic Cannon 2 | . 2 8 Special Melee Weapon 2 | . 2 2 Peak Build Rating 10 | 6 10 9 Average Rating 7 | 5 8 7 On Entrance 5 | . 6 9 Naked Turns . | . . . Heaviest Build 15 | 14 15 14 Greatest Support 40 | 40 40 40 Greatest Overweight (x) . | . . . Average Overweight (x) . | . . . Largest Inventory Capacity 8 | 8 8 8 Average Capacity 7 | 7 8 8 Most Carried 8 | 6 8 8 Average Carried 6 | 5 7 7 Final Capacity 8 | 8 8 8 Final Carried 8 | 6 8 6 Class Distribution -------------------- 100% | Mutant Dominant Class ---------------- Mutant | -10/Materials Mutant | -10/Mines Resources | -11 -10 -10 ----------- Run | Yrd Mat Min Matter Collected 515 | 207 308 . Remotely . | . . . Salvage Created 307 | . 307 . Parts 16 | . 16 . Haulers Intercepted . | . . . Recyclers Shooed . | . . . Parts Field Recycled . | . . . Retrieved Matter . | . . . Parts Self-Destructed . | . . . Prevented . | . . . Kills | -11 -10 -10 ------- Run | Yrd Mat Min Combat Hostiles Destroyed 7 | . 6 1 Guns 6 | . 6 . Cannons 1 | . . 1 Classes Destroyed 3 | . 2 1 Watcher 2 | . 2 . Grunt 6 | . 6 . Assembled 1 | . . 1 Best Kill Streak 2 | . 2 1 Combat Bots Only 2 | . 2 1 Max Kills in Single Turn 1 | . 1 1 Gunslinging . | . . . Exploded . | . . . Melee . | . . . Uniques/NPCs Destroyed . | . . . Combat | -11 -10 -10 -------- Run | Yrd Mat Min Hostile Shots Fired 70 | . 31 39 Missed 19 | . 8 11 Hits 51 | . 23 28 Projectile 51 | . 23 28 AOE 7 | . . 7 Critical Strikes 1 | . 1 . Part Disruptions 1 | . . 1 Damage Taken 1063 | . 242 821 Core 251 | . 21 230 Absorbed by Shields . | . . . Ignored by Resistances 211 | . 70 141 Core Remaining (%) 100 | 100 . . Volleys Fired 32 | . 23 9 Largest 2 | . 2 2 Hottest 100 | . 100 50 Shots Fired 58 | . 45 13 Gun 49 | . 42 7 Cannon 9 | . 3 6 Launcher . | . . . Special . | . . . Kinetic 16 | . 6 10 Thermal 33 | . 30 3 Explosive . | . . . Electromagnetic 9 | . 9 . Robot Hit Streak 18 | . 18 8 Robot Miss Streak 1 | . 1 1 Penetration Max . | . . . Secondary Targets . | . . . Shots Hit Robots 45 | . 36 9 Core Hits 21 | . 19 2 Critical Kills . | . . . Critical Parts Destroyed . | . . . Critical Strikes 4 | . 4 . Burn 4 | . 4 . Melee Attacks . | . . . Impact . | . . . Slashing . | . . . Piercing . | . . . Sneak Attacks . | . . . Combat Hostiles . | . . . Follow-up Attacks . | . . . Damage Inflicted 592 | . 465 127 Guns 472 | . 439 33 Cannons 106 | . 19 87 Explosions . | . . . Melee . | . . . Ramming 14 | . 7 7 Kinetic 142 | . 34 108 Thermal 322 | . 310 12 Explosive . | . . . Electromagnetic 114 | . 114 . Impact . | . . . Slashing . | . . . Piercing . | . . . Highest Corruption . | . . . Average Corruption . | . . . Corruption Purged . | . . . Corruption Blocked . | . . . Overload Shots . | . . . Overflow Damage 5 | . . 5 Projectiles 5 | . . 5 Explosions . | . . . Melee . | . . . Knockbacks 4 | . . 4 Impact . | . . . Kinetic 3 | . . 3 Secondary 1 | . . 1 Self-Inflicted Damage . | . . . Shots . | . . . Rammed 5 | . 4 1 Targets Rammed 5 | . 4 1 Kicked . | . . . Crushed . | . . . Highest Temperature 276 | . 276 48 Average Temperature 76 | . 82 24 Received Heat Transfer 255 | . 195 60 Siege Activations . | . . . Martial Activations . | . . . Shielding Activations . | . . . Robots Disrupted . | . . . Combat Hostiles . | . . . Robots Corrupted . | . . . Combat Hostiles . | . . . Parts Fried . | . . . Impact Corruptions . | . . . Robots Melted . | . . . Combat Hostiles . | . . . Parts Melted 6 | . 6 . Heat Transferred 1258 | . 1221 37 Parts Sabotaged . | . . . Parts Stolen . | . . . Parts Stripped . | . . . Power Chain Reactions . | . . . Alert | -11 -10 -10 ------- Run | Yrd Mat Min Maximum Alert Level . | . . . Low Security (%) 100 | 100 100 100 Level 1 . | . . . Level 2 . | . . . Level 3 . | . . . Level 4 . | . . . Level 5 . | . . . High Security . | . . . Max Security . | . . . Peak Influence 52 | . 52 . Initial . | . . . Average 7 | . 14 . Influence Increases 227 | . 227 . Destroy 0b10 Robot/C 120 | . 120 . Destroy 0b10 Robot/NC 10 | . 10 . Destroy Leader 34 | . 34 . Successful Hack 1 | . 1 . Destroy Structure 2 | . 2 . Lose Combat Pursuer 60 | . 60 . Influence Decreases 227 | . 227 . Time Decay 207 | . 207 . Lost Part 20 | . 20 . Squads Dispatched . | . . . Investigation . | . . . Extermination . | . . . Reinforcement . | . . . Assault . | . . . Garrison . | . . . Intercept . | . . . Searches Triggered . | . . . Construction Impeded . | . . . Haulers Reinforced . | . . . Active Scanning Responses . | . . . Cargo Convoy Interrupts . | . . . Stealth | -11 -10 -10 --------- Run | Yrd Mat Min Distress Signals . | . . . Communications Jammed . | . . . Distress Signals . | . . . Times Spotted 33 | . 13 20 Peak Tracking Total 19 | . 2 19 Tactical Retreats 4 | . 3 1 Traps | -11 -10 -10 ------- Run | Yrd Mat Min Traps Triggered . | . . . Indirectly . | . . . Trap Hack Attempts . | . . . Triggered . | . . . Disarmed . | . . . Reprogrammed . | . . . Reused . | . . . Traps Extracted . | . . . Installed . | . . . Triggered . | . . . Machines | -11 -10 -10 ---------- Run | Yrd Mat Min Machines Disabled . | . . . Max in Single Turn . | . . . Machines Repaired . | . . . Machines Dismantled . | . . . Machines Sabotaged . | . . . Overloaded Fab Kills . | . . . Hacking | -11 -10 -10 --------- Run | Yrd Mat Min Machines Accessed 2 | . 2 . Terminals 1 | . 1 . Fabricators . | . . . Repair Stations . | . . . Recycling Units 1 | . 1 . Scanalyzers . | . . . Garrison Access . | . . . Total Hacks 7 | . 7 . Successful 6 | . 6 . Failed 1 | . 1 . Catastrophic . | . . . Database Lockouts . | . . . Manual . | . . . Terminals 4 | . 4 . Fabricators . | . . . Repair Stations . | . . . Recycling Units 3 | . 3 . Scanalyzers . | . . . Garrison Access . | . . . Terminal Hacks 3 | . 3 . Record 3 | . 3 . Fabricator Hacks . | . . . Repair Station Hacks . | . . . Recycling Unit Hacks 3 | . 3 . Recycle Component 1 | . 1 . Process 1 | . 1 . Report Inventory 1 | . 1 . Scanalyzer . | . . . Garrison Access Hacks . | . . . Unauthorized Hacks . | . . . Terminals . | . . . Fabricators . | . . . Repair Stations . | . . . Recycling Units . | . . . Scanalyzers . | . . . Garrison Access . | . . . Data Cores Recovered . | . . . Used . | . . . Hacking Detections 2 | . 2 . Full Trace Events . | . . . Feedback Events . | . . . Feedback Blocked . | . . . Robot Schematics Acquired . | . . . Robots Built . | . . . Authchips . | . . . Time . | . . . Total Robot Build Rating . | . . . Part Schematics Acquired . | . . . Parts Built . | . . . Authchips . | . . . Time . | . . . Total Part Build Rating . | . . . Parts Repaired . | . . . Time . | . . . Parts Recycled 1 | . 1 . Recycled Matter 24 | . 24 . Retrieved Matter . | . . . Retrieved Components . | . . . Parts Scanalyzed . | . . . Part Schematics Acquired . | . . . Parts Damaged . | . . . Bothacking | -11 -10 -10 ------------ Run | Yrd Mat Min Used RIF Installer . | . . . Robots Hacked . | . . . Non-combat . | . . . Combat . | . . . Robot Hacks Applied . | . . . Relay Couplers Released . | . . . Fabnet Peak Effective % . | . . . Robots Rewired . | . . . Allies Hacked . | . . . Hacks Repelled . | . . . Allies | -11 -10 -10 -------- Run | Yrd Mat Min Total Allies . | . . . Largest Group . | . . . Highest-Rated Group . | . . . Highest-Rated Ally . | . . . Total Orders . | . . . Ally Attacks . | . . . Total Damage . | . . . Kills . | . . . Allies Corrupted . | . . . Allies Melted . | . . . Intel | -11 -10 -10 ------- Run | Yrd Mat Min Active Infowar (turns) 371 | . 371 . Optics 371 | . 371 . Robot Analysis Total . | . . . Derelict Logs Recovered . | . . . Drone Launches . | . . . Drone Recoveries . | . . . Exploration | -11 -10 -10 ------------- Run | Yrd Mat Min Turns Passed 1443 | 680 718 45 Spaces Moved 475 | 104 359 12 Core 5 | 5 . . Treads 452 | 81 359 12 Legs 18 | 18 . . Wheels . | . . . Hover . | . . . Flight . | . . . Fastest Speed 50 | 50 160 160 Average Speed 157 | 147 160 160 Slowest Speed 160 | 160 160 160 Overloaded Moves . | . . . Propulsion Burnouts . | . . . Robots Hopped . | . . . Potential Cave-ins 3 | . . 3 Cave-ins Triggered 1 | . . 1 Exploration Rate (%) 19 | 9 42 7 Regions Visited 2 Branch Regions 1 Pre-discovered Areas . | . . . Known Exits Taken 1 | . 1 . Unknown Exits Taken 1 | 1 . . Scrap Searched . | . . . Spaces Dug . | . . . Terrain Destroyed . | . . . Melee . | . . . Projectile . | . . . AOE . | . . . Terrain Rammed . | . . . Walls Destroyed . | . . . Machines Disabled . | . . . Actions | -11 -10 -10 --------- Run | Yrd Mat Min Total 1111 | 629 457 25 Wait 549 | 506 43 . Move 473 | 103 358 12 Hop . | . . . Pick Up 25 | 12 13 . Fast Attach . | . . . Attach 12 | 6 4 2 Detach 1 | . 1 . Swap 8 | 2 5 1 Drop 6 | . 6 . Fire 32 | . 23 9 Melee . | . . . Ram . | . . . Kick . | . . . Crush 5 | . 4 1 Escape Stasis . | . . . Rewire . | . . . Trap . | . . . Miscellaneous . | . . . Route ------- -11/Scrapyard -10/Materials (discovered 2 exits: [*Mat] / *Min) -10/Mines History --------- Turn | Location | Event 4 | -11/Scrapyard | Discovered new exit (range 16) 681 | -11/Scrapyard | Entered Materials 682 | -10/Materials | Build established: Mutant 841 | -10/Materials | Discovered new exit (range 18) 1219 | -10/Materials | Discovered new exit (range 16) 1397 | -10/Materials | Identified exit to Mines 1399 | -10/Materials | Entered Mines 1400 | -10/Mines | Assembled infested the area 1415 | -10/Mines | Met a Derelict bent on vengeance 1430 | -10/Mines | Crushed by falling debris 1430 | -10/Mines | Core integrity fell below 50% 1439 | -10/Mines | Core integrity fell below 20% 1444 | -10/Mines | Destroyed by as-75864 with Assembled Heavy Rifle Last Messages --------------- 01430_ The unstable cave ceiling collapses. 01430_ Crushed by falling debris. [Achievement: Unlikely Earthworm] Important note for Steam players: Cogmind player global achievement rates displayed by Steam are all significantly underreported, in some cases by a huge margin, due to how they are calculated by Valve. 01430_ Signal Interpreter destroyed. 01430_ Lgt. Assault Rifle destroyed. 01430_ as-47920 knocked back. 01431_ The unstable cave ceiling collapses. 01431_ U-05 Engineer lays Concrete. 01433_ The unstable cave ceiling collapses. 01433_ Lgt. Cannon destroyed. 01433_ U-05 Engineer lays Concrete. 01437_ The unstable cave ceiling collapses. 01437_ U-05 Engineer lays Concrete. 01441_ Lgt. Treads destroyed. 01443_ U-05 Engineer lays Concrete. Map ----- +----------------------------------------------------+ | ??????????????????????????? | | ??????????????????????????? | | ??????????????????????????? | | ??????????????????????????? | | ??????????????????????????? | | ?????????????????#????????? | | ?????????????????# ??????? | | ????????????????## ??????? | | ????????????????# " ??????? | | ?????????????????"%"??????? | | ????????????????? " ?????? | | ?????????????????# ?????? | | ????????????????## ?????? | | ????????????????? ?????? | | ?????????????????? ?????? | | ??????????????????? ?????? | | ?????????????????###%####?? | | ????????????????## # # ###? | | ????????????????# ## | | ????????????????# # | | ????????????????# u | | ????????????????# % # | | ????????????????# %! a # | | ????????????????# * !a # | | ????????????????## # | | ???????????????# %##@ | | ???????????? # | | ?????????? = # | | ???????????## ## | | ????????????# a a%###? | | ????????????# % ###??? | | ????????????# # ?????? | | ????????????# ??????? | | ????????????## #??????? | | ?????????????#### #???????? | | ????????????????##????????? | | ??????????????????????????? | | ??????????????????????????? | | ??????????????????????????? | | | | | | | | | | | | | | | | | | | | | | | +----------------------------------------------------+ Best States ------------- Heat Dissipation 25 Energy Generation 14 Energy Capacity 250 Matter Stores 300 Matter Capacity 300 Sight Range 18 Terrain Scan Density 10 Resistance: KI 20 Resistance: TH 20 Resistance: EX 20 Resistance: EM 20 Resistance: I 20 Resistance: S 20 Resistance: P 20 Power Shielding 33 Evasion (%) 55 Recoil Reduction 2 Offensive Hacking 10 Item Schematics ----------------- None Robot Schematics ------------------ None Fabricated ------------ Nothing Repaired ---------- Nothing Alien Tech Used ----------------- None Achievements -------------- Unlikely Earthworm Challenges ------------ None Game ------ Seed SystemArmageddonBuckler Manual? 0 Play Time 00:13:46 Cumulative 3.7 hours Start 2025.06.26 @ 03:43:24 End 2025.06.26 @ 03:58:38 Sessions 1 Manual Loads 0 Difficulty Adventurer Special Mode None Game No. 6 Rogue 0 Adventurer 6 Explorer 0 Win Type - Total 0 Types 0/0/0/0/0/0/0/0/0/0 Lore% 0 Gallery% 6 Achievement% 5 Wizard Run 0 Options --------- Layout 2 ASCII 1 Keyboard 0 Movement Mouse Keybinds 0 Fullscreen 1 Font 16/SmallcapsGlow Map View 25x24 Zoom Use 79% Tactical HUD 1 Map Filters NONE Filters NONE Steam SD RUN: aacc9342-b40e-4e48-a005-d8c54104e5ce